bitfinex/quotes_ETHUSD_20240718
["timestamp","ask_amount","ask_price","bid_price","bid_amount"]
[1721296843312,2.89309,3456.6,3456.3,0.0967567]
[1721296843633,3.92334809,3456.5,3456.4,0.09670937]
[1721296844002,3.92334809,3456.5,3455.9,2.89358]
[1721296844221,2.8931,3456.5,3455.9,2.89358]
[1721296844441,2.8931,3456.5,3456.0,0.09670937]
[1721296845235,5.78628,3456.5,3456.0,0.09670937]
[1721296845415,5.78628,3456.5,3455.7,6.2074]
[1721296845741,5.78628,3456.5,3455.8,0.09670937]
[1721296845964,6.89855009,3456.5,3455.8,0.09670937]
[1721296846310,2.89319,3456.4,3455.8,0.09670937]
[1721296846522,2.89328,3456.3,3455.8,0.09670937]
[1721296846745,2.89328,3456.3,3455.7,6.2074]
[1721296847043,2.89328,3456.3,3455.7,2.4937]
[1721296847230,3.44551378,3456.3,3455.7,2.4937]
[1721296847438,2.89328,3456.3,3455.8,0.09670937]
[1721296847635,2.89335,3456.2,3455.7,3.3137]
[1721296847820,2.89343,3456.1,3455.7,3.3137]
[1721296848148,2.89343,3456.1,3455.8,0.09670937]
[1721296848523,2.89343,3456.1,3455.7,3.3137]
[1721296848718,2.89343,3456.1,3455.9,0.09670937]
[1721296848948,2.89343,3456.1,3455.7,3.3137]
[1721296849137,2.89343,3456.1,3456.0,0.09670937]
[1721296849341,2.89343,3456.1,3455.7,3.3137]
[1721296849852,2.89343,3456.1,3455.8,0.0966857]
[1721296850206,2.89343,3456.1,3455.7,3.3137]
[1721296850610,2.89343,3456.1,3455.8,0.0966857]
[1721296850914,2.8936,3455.9,3455.3,6.03596]
[1721296851114,2.89369,3455.8,3455.3,6.03596]
[1721296853007,5.15099,3456.0,3455.3,6.03596]
[1721296853210,2.89359,3456.0,3455.3,6.03596]
[1721296853411,2.89361,3455.9,3455.5,0.82]
[1721296853721,2.89339,3456.2,3455.5,0.82]
[1721296853925,2.89339,3456.2,3455.6,0.82]
[1721296854121,2.89339,3456.2,3455.7,2.4899]
[1721296857451,2.89339,3456.2,3455.6,3.71384]
[1721296857614,8.98604992,3456.2,3455.6,0.82]
[1721296858551,2.89344,3456.1,3455.5,2.89393]
[1721296859118,2.89361,3455.9,3455.4,0.82]
[1721296860377,6.87989889,3456.2,3455.4,3.714]
[1721296860517,2.89339,3456.2,3455.6,0.82]
[1721296860933,2.89339,3456.2,3455.6,3.71384]
[1721296862053,2.89335,3456.2,3455.6,3.71384]
[1721296862262,2.89335,3456.2,3455.7,0.09674093]
[1721296863656,4.41159654,3456.4,3455.7,0.09674093]
[1721296863860,2.89326,3456.3,3455.7,0.09674093]
[1721296864270,4.41167654,3456.3,3455.7,0.09674093]
[1721296864570,2.89337,3456.2,3455.7,0.09674093]
[1721296867385,4.60688668,3456.2,3455.5,5.20578]
[1721296867545,4.60688668,3456.2,3455.8,0.09674093]
[1721296867750,4.60688668,3456.2,3455.5,5.20578]
[1721296867751,9.01849286,3456.2,3455.5,5.20578]
[1721296868042,7.30497618,3456.2,3455.5,5.20578]
[1721296868243,7.30497618,3456.2,3455.6,0.09671727]
[1721296868444,2.89344,3456.1,3455.6,0.09671727]
[1721296868649,2.89366,3455.9,3455.6,0.09671727]
[1721296868853,2.89369,3455.8,3455.2,6.03958]
[1721296869062,2.89369,3455.8,3455.3,0.09671727]
[1721296869260,2.89369,3455.8,3455.2,6.03958]
[1721296869477,2.89369,3455.8,3455.3,0.09671727]
[1721296869661,2.89369,3455.8,3455.2,6.03958]
[1721296869873,2.89369,3455.8,3455.3,0.09671727]
[1721296870048,2.89369,3455.8,3455.2,3.1454]
[1721296870049,3.51787976,3455.8,3455.2,3.1454]
[1721296870381,3.51787976,3455.8,3455.3,0.09671727]
[1721296870676,3.51787976,3455.8,3455.2,3.1454]
[1721296870843,2.89369,3455.8,3455.4,0.09671727]
[1721296871046,2.89369,3455.8,3455.2,6.03958]
[1721296871466,2.89369,3455.8,3455.3,0.09678828]
[1721296871686,2.89369,3455.8,3455.2,6.03958]
[1721296871886,2.89369,3455.8,3455.4,0.09678828]
[1721296872087,2.89369,3455.8,3455.2,6.03958]
[1721296872257,2.89369,3455.8,3455.5,0.09678828]
[1721296872466,3.85159484,3455.8,3455.2,6.03958]
[1721296872661,1.5178984,3455.9,3455.3,0.09678828]
[1721296872991,5.16739,3456.0,3455.4,0.82]
[1721296872992,2.89359,3456.0,3455.4,0.82]
[1721296873181,2.89361,3455.9,3455.4,0.82]
[1721296873685,2.89361,3455.9,3455.5,0.09678828]
[1721296874562,2.89368,3455.8,3455.5,0.09678828]
[1721296875892,2.89368,3455.8,3455.2,6.03953]
[1721296876195,2.89377,3455.7,3455.6,0.09678828]
[1721296876397,2.89377,3455.7,3455.2,6.03957]
[1721296876903,2.89377,3455.7,3455.3,0.09678828]
[1721296877189,5.78761,3455.7,3455.2,0.82]
[1721296877390,5.78761,3455.7,3455.4,0.09678828]
[1721296877603,2.89385,3455.6,3455.2,0.82]
[1721296877803,2.89385,3455.6,3455.5,0.09678828]
[1721296877951,2.89385,3455.6,3455.2,0.82]
[1721296878158,2.89385,3455.6,3455.5,0.09686192]
[1721296878355,2.89385,3455.6,3455.1,2.4781]
[1721296878856,2.89385,3455.6,3455.2,0.09686192]
[1721296879664,2.89393,3455.5,3455.2,0.09686192]
[1721296880067,2.89393,3455.5,3455.0,0.82]
[1721296880262,2.89393,3455.5,3455.1,0.09686192]
[1721296880469,2.89393,3455.5,3455.0,0.82]
[1721296880690,2.89393,3455.5,3455.1,0.91686192]
[1721296882869,2.89393,3455.5,3455.1,0.09686192]
[1721296883074,2.89393,3455.5,3454.9,6.00413]
[1721296883287,2.89393,3455.5,3455.0,0.09692769]
[1721296884093,2.89393,3455.5,3455.1,0.82]
[1721296884613,2.89393,3455.5,3455.2,0.09692769]
[1721296894000,2.89393,3455.5,3454.9,6.00408]
[1721296894511,2.89393,3455.5,3455.0,0.09498598]
[1721296896510,3.710783,3455.5,3455.0,0.09498598]
[1721296896674,2.8942,3455.2,3455.0,0.09498598]
[1721296897012,2.8942,3455.2,3454.6,6.09932]
[1721296897187,2.8942,3455.2,3455.1,0.09503334]
[1721296897388,2.8942,3455.2,3454.6,6.09932]
[1721296897609,2.8942,3455.2,3455.1,0.09503334]
[1721296897915,3.38221099,3455.2,3455.1,0.09503334]
[1721296898121,3.38221099,3455.2,3454.6,6.09932]
[1721296898418,2.8942,3455.2,3455.1,0.09503334]
[1721296898634,2.8942,3455.2,3454.6,6.09932]
[1721296898785,2.8942,3455.2,3455.1,0.09503334]
[1721296899324,2.8942,3455.2,3454.6,6.09932]
[1721296899644,2.8942,3455.2,3455.1,0.09503334]
[1721296899820,2.8942,3455.2,3454.6,6.09932]
[1721296900121,2.89418,3455.3,3454.6,6.09932]
[1721296900302,2.89418,3455.3,3454.7,0.09503334]
[1721296900504,2.89418,3455.3,3454.7,2.98962334]
[1721296901301,3.86245785,3455.3,3454.7,0.09503334]
[1721296902431,2.4087,3455.2,3454.7,2.98963334]
[1721296902615,2.4087,3455.2,3454.7,0.09503334]
[1721296902933,5.30291,3455.2,3454.6,3.71468]
[1721296903245,5.30291,3455.2,3454.8,0.09511227]
[1721296903395,5.30291,3455.2,3454.6,3.71468]
[1721296903595,5.30291,3455.2,3454.9,0.09511227]
[1721296903926,5.30291,3455.2,3455.0,0.09511227]
[1721296904132,5.30291,3455.2,3454.6,3.71468]
[1721296904434,5.30291,3455.2,3455.1,0.09511227]
[1721296904591,5.30291,3455.2,3454.6,3.71468]
[1721296904592,5.915201,3455.2,3454.6,3.71468]
[1721296904792,5.30291,3455.2,3455.1,0.09511227]
[1721296905005,8.19717,3455.2,3454.6,2.89468]
[1721296905249,8.19717,3455.2,3455.1,0.09511227]
[1721296905529,6.204627,3455.2,3455.1,0.09511227]
[1721296905696,6.204627,3455.2,3454.6,2.89468]
[1721296905901,5.30291,3455.2,3455.1,0.09511227]
[1721296906106,8.19717,3455.2,3454.6,2.89468]
[1721296906331,2.4087,3455.2,3455.1,0.09511227]
[1721296906532,2.4087,3455.2,3454.6,2.89468]
[1721296906729,2.4087,3455.2,3455.1,0.09511227]
[1721296906944,3.020968,3455.2,3454.6,2.89468]
[1721296907113,2.4087,3455.2,3455.1,0.09511227]
[1721296907316,2.4087,3455.2,3454.7,2.89459]
[1721296907802,2.4087,3455.2,3454.8,0.09511227]
[1721296908341,2.4087,3455.2,3454.9,0.09511227]
[1721296908501,2.4087,3455.2,3454.6,2.89465]
[1721296908698,0.612276,3455.1,3455.0,0.09196984]
[1721296908898,1.432276,3455.1,3454.6,2.89465]
[1721296909115,2.4087,3455.2,3455.0,0.09196984]
[1721296909298,2.4087,3455.2,3454.8,2.89451]
[1721296909524,2.4087,3455.2,3455.1,0.09196984]
[1721296909699,2.4087,3455.2,3454.8,2.89451]
[1721296909901,2.4087,3455.2,3455.1,0.09196984]
[1721296910094,3.4617181,3455.2,3454.8,2.89451]
[1721296910339,3.4617181,3455.2,3454.9,0.09196984]
[1721296913741,3.4617181,3455.2,3454.9,2.98639984]
[1721296915137,3.4617181,3455.2,3454.9,0.09196984]
[1721296915325,3.4617181,3455.2,3454.7,5.78918]
[1721296915326,3.4617181,3455.2,3454.7,2.89459]
[1721296915527,3.4617181,3455.2,3455.0,0.09214353]
[1721296915711,0.71757781,3455.1,3454.7,2.89459]
[1721296916040,2.4087,3455.2,3455.1,0.09214353]
[1721296916343,2.4087,3455.2,3454.7,2.89459]
[1721296916344,2.4087,3455.2,3454.9,2.89443]
[1721296916545,2.4087,3455.2,3455.1,0.09214353]
[1721296916696,2.4087,3455.2,3454.8,2.89447]
[1721296916896,2.4087,3455.2,3454.9,0.09212773]
[1721296917545,3.17232872,3455.2,3454.9,0.09212773]
[1721296918504,0.82,3455.1,3454.9,0.09212773]
[1721296918703,0.82,3455.1,3454.5,2.89472]
[1721296918704,2.3759,3455.0,3454.5,2.89472]
[1721296919242,2.3759,3455.0,3454.4,2.89484]
[1721296919546,0.82,3454.9,3454.4,2.89484]
[1721296920242,1.42823823,3454.9,3454.4,2.89484]
[1721296920545,4.32272823,3454.9,3454.2,2.89502]
[1721296920718,1.42823823,3454.9,3454.0,2.89516]
[1721296920915,0.82,3454.7,3454.0,2.89516]
[1721296921355,3.82,3454.7,3454.0,2.89516]
[1721296921543,2.8947,3454.6,3453.8,5.27369]
[1721296921742,2.89478,3454.5,3453.9,2.89526]
[1721296921953,2.89486,3454.4,3453.9,2.89526]
[1721296922167,2.89486,3454.4,3453.8,5.27375]
[1721296923343,2.89508,3454.2,3453.6,0.1290834]
[1721296923755,2.89511,3454.1,3453.6,0.1290834]
[1721296924824,5.79028,3454.1,3453.6,0.1290834]
[1721296925057,2.89521,3454.0,3453.7,0.09214877]
[1721296925545,2.89529,3453.9,3453.7,0.09214877]
[1721296925978,5.79064,3453.9,3453.7,0.09214877]
[1721296926474,2.89529,3453.9,3453.7,0.09214877]
[1721296926993,2.89536,3453.8,3453.7,0.09214877]
[1721296927635,5.79072,3453.8,3453.7,0.09214877]
[1721296928039,11.08442,3453.8,3453.7,0.09214877]
[1721296928333,11.08442,3453.8,3453.6,0.1290834]
[1721296928334,8.08458,3453.7,3453.6,0.1290834]
[1721296928536,11.90458,3453.7,3453.6,0.1290834]
[1721296928749,13.4743274,3453.7,3453.6,0.1290834]
[1721296928965,16.3697674,3453.7,3453.6,0.1290834]
[1721296930630,12.6543274,3453.7,3453.6,0.1290834]
[1721296930834,13.4743274,3453.7,3453.6,0.1290834]
[1721296932334,12.6543274,3453.7,3453.6,0.1290834]
[1721296932675,13.4743274,3453.7,3453.6,0.1290834]
[1721296938181,16.3697674,3453.7,3453.6,0.1290834]
[1721296941394,12.6543274,3453.7,3453.6,0.1290834]
[1721296941707,13.4743274,3453.7,3453.6,0.1290834]
[1721296942173,16.3697674,3453.7,3453.6,0.1290834]
[1721296945181,19.2652074,3453.7,3453.6,0.1290834]
[1721296945817,19.8152074,3453.7,3453.6,0.1290834]
[1721296947313,16.9197674,3453.7,3453.6,0.1290834]
[1721296948308,14.0760674,3453.7,3453.6,0.1290834]
[1721296948605,11.1806274,3453.7,3453.6,0.1290834]
[1721296952981,14.0760674,3453.7,3453.6,0.1290834]
[1721296955435,11.1806274,3453.7,3453.6,0.1290834]
[1721296959140,16.4277674,3453.7,3453.6,0.1290834]
[1721296962542,14.0760674,3453.7,3453.6,0.1290834]
[1721296966414,3.0,3453.7,3453.6,0.1290834]
[1721296966642,5.15951923,3454.2,3453.7,2.3439]
[1721296966643,2.89519,3454.1,3453.7,2.3439]
[1721296966813,2.89519,3454.1,3453.8,0.09313373]
[1721296967138,2.89519,3454.1,3453.7,2.3439]
[1721296967646,2.89519,3454.1,3453.8,0.09311263]
[1721296967942,2.89519,3454.1,3453.7,2.3439]
[1721296968096,2.89519,3454.1,3453.9,0.09311263]
[1721296968299,3.0,3454.0,3453.8,0.09305204]
[1721296968552,3.0,3454.0,3453.7,2.3439]
[1721296968839,3.0,3454.0,3453.9,0.09305204]
[1721296969042,3.0,3454.0,3453.7,2.3439]
[1721296969238,3.0,3454.0,3453.9,0.09305204]
[1721296969535,3.0,3454.0,3453.7,2.3439]
[1721296969696,3.0,3454.0,3453.9,0.09305204]
[1721296969899,3.0,3454.0,3453.7,2.3439]
[1721296970094,3.0,3454.0,3453.9,0.09305204]
[1721296970299,2.89507,3454.2,3453.9,0.09305204]
[1721296970498,2.89507,3454.2,3453.7,2.3439]
[1721296970735,2.89507,3454.2,3454.0,0.0929572]
[1721296970922,2.89495,3454.3,3453.8,0.53685634]
[1721296971125,3.0,3454.2,3454.1,0.09295193]
[1721296971327,3.0,3454.2,3453.8,0.53685634]
[1721296971516,3.0,3454.2,3454.1,0.09295193]
[1721296971921,3.0,3454.2,3453.8,0.53685634]
[1721296972123,3.0,3454.2,3454.1,0.09295193]
[1721296972333,3.0,3454.2,3453.8,0.53685634]
[1721296972519,3.0,3454.2,3454.1,0.09295193]
[1721296972718,3.0,3454.2,3453.7,2.3439]
[1721296972927,3.0,3454.2,3454.1,0.09295193]
[1721296973336,2.89495,3454.3,3453.7,2.3439]
[1721296973557,7.36,3454.5,3454.1,0.09295193]
[1721296973780,5.82466,3454.7,3454.1,0.09295193]
[1721296973781,2.93,3454.7,3454.2,5.16595]
[1721296974224,2.93,3454.7,3454.3,0.09288345]
[1721296974634,2.93,3454.7,3454.2,5.16595]
[1721296974953,2.93,3454.7,3454.3,0.09279919]
[1721296975469,2.93,3454.7,3454.2,2.271]
[1721296975930,2.93,3454.7,3454.3,0.09279919]
[1721296976257,2.93,3454.7,3454.2,2.271]
[1721296976422,2.93,3454.7,3454.3,0.09278602]
[1721296976623,2.89485,3454.5,3453.8,2.3204]
[1721296976854,2.89485,3454.5,3453.9,0.09278865]
[1721296977551,2.89494,3454.3,3453.8,2.3204]
[1721296977856,2.89512,3454.1,3453.9,0.09246995]
[1721296978057,2.89519,3454.0,3453.9,0.09246995]
[1721296978412,2.89519,3454.0,3453.6,0.1290834]
[1721296978614,2.89519,3454.0,3453.7,0.09246995]
[1721296978814,2.89507,3454.2,3453.7,0.09246995]
[1721296979058,2.89519,3454.0,3453.7,0.09246995]
[1721296979860,2.89527,3453.9,3453.7,0.09246995]
[1721296983365,2.89512,3454.1,3453.7,0.09246995]
[1721296983542,2.89524,3454.0,3453.7,0.09246995]
[1721296984551,2.89512,3454.1,3453.7,0.09246995]
[1721296984861,2.89523,3454.0,3453.7,0.09246995]
[1721296985852,2.89512,3454.1,3453.7,0.09246995]
[1721296986252,2.89523,3454.0,3453.7,0.09246995]
[1721296988754,2.89527,3453.9,3453.7,0.09246995]
[1721296996029,2.89535,3453.9,3453.7,0.09246995]
[1721296996230,0.289535,3453.9,3453.7,0.09246995]
[1721296996425,5.79072,3453.8,3453.7,0.09246995]
[1721296996742,2.89544,3453.7,3453.6,0.1290834]
[1721296997130,2.89544,3453.7,3453.6,0.2218018]
[1721296997348,5.79088,3453.7,3453.6,0.2218018]
[1721296997752,5.79088,3453.7,3453.6,0.1290834]
[1721296997940,6.701518,3453.7,3453.6,0.1290834]
[1721296999224,3.806078,3453.7,3453.6,0.1290834]
[1721296999866,3.806078,3453.7,3453.6,0.2219414]
[1721297002830,6.701518,3453.7,3453.6,0.2219414]
[1721297003067,9.192818,3453.7,3453.6,0.1290834]
[1721297003638,12.088258,3453.7,3453.6,0.1290834]
[1721297005382,15.088258,3453.7,3453.6,0.1290834]
[1721297005584,16.59945519,3453.7,3453.6,0.1290834]
[1721297005895,15.088258,3453.7,3453.6,0.1290834]
[1721297006601,16.59945519,3453.7,3453.6,0.1290834]
[1721297006755,15.088258,3453.7,3453.6,0.1290834]
[1721297007803,9.701518,3453.7,3453.6,0.1290834]
[1721297011716,6.806078,3453.7,3453.6,0.1290834]
[1721297012097,6.806078,3453.7,3453.6,0.22209422]
[1721297014121,9.701518,3453.7,3453.6,0.22209422]
[1721297014488,12.596958,3453.7,3453.6,0.1290834]
[1721297014992,14.10948846,3453.7,3453.6,0.1290834]
[1721297015525,11.21404846,3453.7,3453.6,0.1290834]
[1721297015692,14.10948846,3453.7,3453.6,0.1290834]
[1721297015894,13.38577791,3453.7,3453.6,0.1290834]
[1721297016099,13.38593394,3453.7,3453.6,0.1290834]
[1721297016498,12.596958,3453.7,3453.6,0.1290834]
[1721297016708,13.38597999,3453.7,3453.6,0.1290834]
[1721297016913,12.596958,3453.7,3453.6,0.1290834]
[1721297018531,13.38594948,3453.7,3453.6,0.1290834]
[1721297021237,16.28138225,3453.7,3453.6,0.1290834]
[1721297021394,16.28124107,3453.7,3453.6,0.1290834]
[1721297023548,21.09804107,3453.7,3453.6,0.1290834]
[1721297023847,21.09804107,3453.7,3453.6,3.4e-06]
[1721297024345,22.91248518,3453.7,3453.6,3.4e-06]
[1721297024703,22.91231713,3453.7,3453.6,3.4e-06]
[1721297025340,13.38584843,3453.7,3453.6,3.4e-06]
[1721297025502,12.596958,3453.7,3453.6,3.4e-06]
[1721297025698,14.10874967,3453.7,3453.6,3.4e-06]
[1721297026010,12.596958,3453.7,3453.6,3.4e-06]
[1721297026215,22.79663613,3453.7,3453.6,3.4e-06]
[1721297026431,22.79627987,3453.7,3453.6,3.4e-06]
[1721297026959,20.98240743,3453.7,3453.6,3.4e-06]
[1721297027399,21.53240743,3453.7,3453.6,3.4e-06]
[1721297027802,17.298158,3453.7,3453.6,3.4e-06]
[1721297028003,18.08699452,3453.7,3453.6,3.4e-06]
[1721297029239,20.98243452,3453.7,3453.6,3.4e-06]
[1721297029416,22.79625723,3453.7,3453.6,3.4e-06]
[1721297029742,19.90081723,3453.7,3453.6,3.4e-06]
[1721297030040,18.08699452,3453.7,3453.6,3.4e-06]
[1721297030216,21.83493168,3453.7,3453.6,3.4e-06]
[1721297030537,23.64875439,3453.7,3453.6,3.4e-06]
[1721297031106,23.64827903,3453.7,3453.6,3.4e-06]
[1721297031503,26.54371903,3453.7,3453.6,3.4e-06]
[1721297031728,24.73026961,3453.7,3453.6,3.4e-06]
[1721297034123,24.42772464,3453.7,3453.6,3.4e-06]
[1721297034447,24.8819256,3453.7,3453.6,3.4e-06]
[1721297034744,24.88199044,3453.7,3453.6,3.4e-06]
[1721297037569,2.3562,3453.0,3451.3,2.3078]
[1721297037784,2.89737,3451.4,3451.3,2.3078]
[1721297037919,5.79474,3451.4,3451.3,2.3078]
[1721297039022,2.89737,3451.4,3451.3,2.3078]
[1721297039527,2.89724,3451.6,3451.3,2.3078]
[1721297040162,2.89729,3451.5,3451.3,2.3078]
[1721297044434,2.89737,3451.4,3451.3,2.3078]
[1721297044638,2.89737,3451.4,3450.8,2.2889]
[1721297045064,2.89737,3451.4,3450.9,0.08759775]
[1721297046366,2.89747,3451.3,3450.9,0.08759775]
[1721297050881,7.36,3451.8,3451.0,2.3233]
[1721297051086,7.36,3451.8,3451.1,3.72058]
[1721297051297,7.36,3451.8,3451.3,2.3485]
[1721297051851,7.36,3451.8,3451.4,0.08792731]
[1721297052052,10.25706,3451.8,3451.4,0.08792731]
[1721297054791,2.89726,3451.6,3451.3,2.3485]
[1721297055117,5.79454,3451.6,3451.3,2.3485]
[1721297055658,2.8973,3451.5,3451.3,2.3485]
[1721297060912,2.8973,3451.5,3451.4,0.08492348]
[1721297061092,2.8973,3451.5,3451.3,2.3485]
[1721297061290,2.8973,3451.5,3451.4,0.08492348]
[1721297061477,2.8973,3451.5,3451.3,2.3485]
[1721297061679,2.8973,3451.5,3451.4,0.08492348]
[1721297061885,7.36,3451.8,3451.3,2.3485]
[1721297062086,5.89692,3452.0,3451.3,2.3485]
[1721297062087,2.897,3451.9,3451.3,2.3485]
[1721297062709,3.0,3452.0,3451.3,2.3485]
[1721297062939,7.36,3452.2,3451.9,2.4653]
[1721297063206,2.89645,3452.5,3451.9,3.2883]
[1721297063570,2.89645,3452.5,3452.0,0.08491821]
[1721297063768,12.13,3452.6,3452.0,0.08491821]
[1721297064397,15.02636,3452.6,3452.0,0.08491821]
[1721297064589,12.13,3452.6,3452.1,2.4267]
[1721297064917,7.36,3452.7,3452.2,0.08484964]
[1721297065224,3.753,3453.0,3452.2,0.08484964]
[1721297065225,2.93,3453.0,3452.5,0.823]
[1721297065508,2.93,3453.0,3452.8,0.823]
[1721297065914,2.93,3453.0,3452.9,0.08469935]
[1721297066208,2.93,3453.0,3452.9,2.98080935]
[1721297067800,2.93,3453.0,3452.9,0.08469935]
[1721297068175,2.93,3453.0,3452.6,2.3089]
[1721297068376,2.93,3453.0,3452.7,2.89623]
[1721297068570,2.93,3453.0,3452.8,2.89617]
[1721297069474,2.93,3453.0,3452.9,0.08469935]
[1721297069917,2.93,3453.0,3452.6,2.3089]
[1721297070214,2.93,3453.0,3452.7,0.08469935]
[1721297071269,2.93,3453.0,3452.7,0.40967364]
[1721297071472,2.93,3453.0,3452.9,2.89611]
[1721297071671,2.93,3453.0,3452.9,5.15301]
[1721297071872,2.93,3453.0,3452.9,5.23734025]
[1721297073377,2.93,3453.0,3452.9,8.13345025]
[1721297073607,7.36,3454.0,3453.3,2.89577]
[1721297073809,2.89516,3454.1,3453.1,2.89589]
[1721297073810,2.89527,3453.9,3453.1,2.89589]
[1721297074013,2.89527,3453.9,3453.4,0.08412204]
[1721297074223,2.89527,3453.9,3453.1,2.89589]
[1721297074381,2.89527,3453.9,3453.5,0.08412204]
[1721297074577,3.474313,3453.9,3453.1,2.89589]
[1721297074782,2.89527,3453.9,3453.6,0.08412204]
[1721297074973,2.89527,3453.9,3453.2,2.89586]
[1721297075498,2.89527,3453.9,3453.3,0.08412204]
[1721297075678,2.89527,3453.9,3453.2,2.89586]
[1721297075873,5.79035,3454.1,3453.3,0.08412204]
[1721297076074,5.89522,3454.0,3453.3,0.08412204]
[1721297076312,5.89522,3454.0,3453.2,2.89586]
[1721297076519,5.89522,3454.0,3453.3,0.08412204]
[1721297076812,5.89522,3454.0,3453.2,2.89586]
[1721297077205,5.89522,3454.0,3453.3,0.08412204]
[1721297077513,7.62062717,3454.0,3453.2,2.89586]
[1721297077719,7.62062717,3454.0,3453.3,0.08412204]
[1721297078028,7.62062717,3454.0,3453.2,2.89586]
[1721297078490,7.62062717,3454.0,3453.3,0.08412204]
[1721297078899,7.62062717,3454.0,3453.2,2.89586]
[1721297079083,7.62062717,3454.0,3453.3,0.08412204]
[1721297079286,3.94685872,3453.9,3453.0,2.89595]
[1721297079487,3.94685872,3453.9,3453.1,0.08412204]
[1721297079689,2.89549,3453.7,3452.9,5.153]
[1721297079889,2.89549,3453.7,3453.0,0.08412204]
[1721297081094,2.89549,3453.7,3453.0,2.98012204]
[1721297081426,6.84220872,3453.9,3453.0,2.98012204]
[1721297081801,2.89545,3453.7,3453.0,2.98012204]
[1721297083218,6.84221872,3453.9,3453.1,2.89594]
[1721297083413,3.87959187,3453.8,3453.1,2.89594]
[1721297083618,3.87959187,3453.8,3453.2,0.08395341]
[1721297085297,3.87959187,3453.8,3453.0,2.89598]
[1721297085519,3.87959187,3453.8,3453.1,0.0839297]
[1721297085931,2.89545,3453.7,3453.1,0.0839297]
[1721297086138,0.67749519,3453.6,3453.1,0.0839297]
[1721297087236,0.67749519,3453.6,3452.9,5.15301]
[1721297087420,3.57305519,3453.6,3453.2,0.0839297]
[1721297087622,3.57305519,3453.6,3452.9,2.2569]
[1721297087807,3.64088271,3453.5,3453.3,0.0839297]
[1721297088008,2.89561,3453.5,3452.9,2.2569]
[1721297088246,2.89561,3453.5,3453.4,0.0839297]
[1721297088446,2.89561,3453.5,3452.9,2.2569]
[1721297088447,5.7913,3453.5,3452.9,2.2569]
[1721297088953,2.89572,3453.4,3453.0,0.0839297]
[1721297089141,3.474853,3453.4,3453.0,0.0839297]
[1721297090465,2.89578,3453.3,3453.0,0.0839297]
[1721297095356,2.89561,3453.5,3453.0,0.0839297]
[1721297095514,2.89561,3453.5,3453.0,0.9059297]
[1721297095947,2.89556,3453.6,3453.0,0.9059297]
[1721297096147,2.89569,3453.5,3453.0,0.9059297]
[1721297096832,2.8957,3453.4,3453.0,0.9059297]
[1721297098642,2.8957,3453.4,3453.0,0.0839297]
[1721297098923,2.89578,3453.3,3452.6,0.822]
[1721297099119,2.89578,3453.3,3452.7,0.08397449]
[1721297099454,2.89587,3453.2,3452.7,0.08397449]
[1721297100354,2.89604,3453.0,3452.7,0.08397449]
[1721297100555,2.89611,3452.9,3452.4,3.2949]
[1721297100722,2.89611,3452.9,3452.8,0.08397449]
[1721297100926,2.89611,3452.9,3452.4,2.4729]
[1721297101126,2.89611,3452.9,3452.5,0.08399293]
[1721297103263,2.8959,3453.2,3452.5,0.08399293]
[1721297103470,2.8959,3453.2,3452.6,2.3722]
[1721297103836,2.8957,3453.4,3452.7,0.08403773]
[1721297104035,2.8957,3453.4,3452.8,2.2613]
[1721297104332,2.89582,3453.3,3452.8,2.2613]
[1721297104563,2.89582,3453.3,3452.5,2.89643]
[1721297104564,4.32336982,3453.3,3452.9,0.08403773]
[1721297104880,4.32336982,3453.3,3452.5,2.89643]
[1721297105127,4.32336982,3453.3,3453.0,0.08405353]
[1721297105229,2.89587,3453.2,3452.5,2.89643]
[1721297105433,2.89616,3452.9,3452.4,2.2613]
[1721297105634,2.89623,3452.8,3452.4,2.2613]
[1721297105831,2.89623,3452.8,3452.0,2.345]
[1721297106087,2.89646,3452.5,3452.0,2.345]
[1721297106286,0.289646,3452.4,3452.0,2.345]
[1721297106504,2.89646,3452.5,3452.0,2.345]
[1721297107539,5.79263,3452.7,3452.0,2.345]
[1721297107739,2.89636,3452.6,3452.0,2.345]
[1721297108848,2.89645,3452.5,3452.0,2.345]
[1721297110240,5.79264,3452.7,3452.0,2.345]
[1721297110639,2.89638,3452.6,3452.0,2.345]
[1721297111244,2.89647,3452.5,3452.0,2.345]
[1721297111954,0.3005868,3452.4,3452.0,2.345]
[1721297113366,0.3005868,3452.4,3452.1,0.08413522]
[1721297114181,0.3005868,3452.4,3452.2,2.89667]
[1721297114476,2.89621,3452.8,3452.0,5.24181]
[1721297114677,4.66686839,3452.8,3452.3,0.08413522]
[1721297114883,4.66686839,3452.8,3452.0,5.24181]
[1721297115267,2.8963,3452.7,3452.1,0.08413522]
[1721297115479,2.8963,3452.7,3452.1,2.98090522]
[1721297117894,2.8963,3452.7,3452.1,0.08413522]
[1721297119278,3.65261084,3452.7,3452.1,0.08413522]
[1721297120282,6.54896084,3452.7,3452.1,0.08413522]
[1721297120476,2.89637,3452.6,3452.0,2.345]
[1721297120692,2.89637,3452.6,3452.2,0.08429599]
[1721297120994,2.89637,3452.6,3452.3,0.08429599]
[1721297121194,2.89637,3452.6,3452.0,5.24185]
[1721297121500,2.89637,3452.6,3452.4,0.08429599]
[1721297121691,3.72831892,3452.6,3452.0,5.24185]
[1721297122007,2.89637,3452.6,3452.0,5.24185]
[1721297122307,2.89637,3452.6,3452.1,0.08425913]
[1721297122897,2.89654,3452.4,3452.1,0.08425913]
[1721297123203,2.89654,3452.4,3451.8,2.89703]
[1721297123914,2.89654,3452.4,3451.9,0.08430921]
[1721297124916,0.30009594,3452.4,3452.0,0.823]
[1721297125222,0.30009594,3452.4,3452.2,0.823]
[1721297125391,2.8962,3452.8,3452.2,0.823]
[1721297125591,6.09245251,3452.8,3452.2,0.823]
[1721297125815,3.19619251,3452.8,3452.3,0.08431185]
[1721297126027,4.54141976,3452.8,3452.2,0.823]
[1721297126315,4.54141976,3452.8,3452.4,0.08431185]
[1721297126525,4.54141976,3452.8,3452.2,0.823]
[1721297127193,4.54141976,3452.8,3452.3,0.08426564]